[Event "*** SCC Grand Prix: Titled Tuesday Blitz"]
[Site "Chess.com"]
[Date "2020.08.25"]
[Round "3"]
[White "MYMChessAcademy"]
[Black "tteshan"]
[Result "0-1"]
[WhiteElo "2119"]
[BlackElo "2337"]
[TimeControl "180+1"]
[EndTime "10:30:16 PDT"]
[Termination "tteshan won by checkmate"]

1. e4 {[%clk 0:03:00.9]} 1... c5 {[%clk 0:02:59.8]} 2. Nf3 {[%clk 0:02:58]} 2...
Nc6 {[%clk 0:02:59.7]} 3. d4 {[%clk 0:02:57.9]} 3... cxd4 {[%clk 0:03:00.6]} 4.
Nxd4 {[%clk 0:02:58.5]} 4... g6 {[%clk 0:03:01.1]} 5. Nc3 {[%clk 0:02:58.7]}
5... Bg7 {[%clk 0:03:01.1]} 6. Be3 {[%clk 0:02:59]} 6... Nf6 {[%clk 0:03:01.4]}
7. Bc4 {[%clk 0:02:59.1]} 7... O-O {[%clk 0:03:01.5]} 8. Bb3 {[%clk 0:02:58.4]}
8... d6 {[%clk 0:03:01.2]} 9. f3 {[%clk 0:02:37.1]} 9... Bd7 {[%clk 0:03:00.5]}
10. Qd2 {[%clk 0:02:30.4]} 10... Na5 {[%clk 0:02:58]} 11. O-O-O {[%clk
0:02:25.6]} 11... Rc8 {[%clk 0:02:57.5]} 12. Kb1 {[%clk 0:02:24.3]} 12... Nc4
{[%clk 0:02:55.7]} 13. Bxc4 {[%clk 0:02:24.2]} 13... Rxc4 {[%clk 0:02:56.6]} 14.
g4 {[%clk 0:02:22.6]} 14... b5 {[%clk 0:02:41.7]} 15. h4 {[%clk 0:02:17.5]}
15... b4 {[%clk 0:02:36.2]} 16. Nce2 {[%clk 0:02:14.2]} 16... Qa5 {[%clk
0:01:52.5]} 17. Ng3 {[%clk 0:02:07.9]} 17... h5 {[%clk 0:01:42.9]} 18. gxh5
{[%clk 0:02:03.3]} 18... Nxh5 {[%clk 0:01:42.7]} 19. Nxh5 {[%clk 0:01:45.1]}
19... Qxh5 {[%clk 0:01:41]} 20. Rdg1 {[%clk 0:01:41.4]} 20... Rfc8 {[%clk
0:01:34.6]} 21. Rg5 {[%clk 0:01:37.3]} 21... Qh8 {[%clk 0:01:18.6]} 22. Rd5
{[%clk 0:01:15.8]} 22... Be6 {[%clk 0:00:50.4]} 23. Nxe6 {[%clk 0:01:14.8]}
23... fxe6 {[%clk 0:00:51.3]} 24. Rb5 {[%clk 0:00:59.2]} 24... Bxb2 {[%clk
0:00:48]} 25. Rxb4 {[%clk 0:00:53.8]} 25... Bc3 {[%clk 0:00:36.6]} 26. Rxc4
{[%clk 0:00:50.8]} 26... Rb8+ {[%clk 0:00:34.7]} 27. Kc1 {[%clk 0:00:45.5]}
27... Bxd2+ {[%clk 0:00:33.9]} 28. Kxd2 {[%clk 0:00:46.4]} 28... Qf6 {[%clk
0:00:30.7]} 29. Ke2 {[%clk 0:00:44.2]} 29... d5 {[%clk 0:00:23.9]} 30. exd5
{[%clk 0:00:35.4]} 30... exd5 {[%clk 0:00:24.8]} 31. Rf4 {[%clk 0:00:35.3]}
31... Qc6 {[%clk 0:00:22.7]} 32. Rc1 {[%clk 0:00:31.3]} 32... Rb2 {[%clk
0:00:22.6]} 33. Kd2 {[%clk 0:00:29.2]} 33... Rxa2 {[%clk 0:00:22.5]} 34. h5
{[%clk 0:00:27.7]} 34... Ra3 {[%clk 0:00:16.2]} 35. hxg6 {[%clk 0:00:21.5]}
35... Qc3+ {[%clk 0:00:15.4]} 36. Kd1 {[%clk 0:00:20.4]} 36... Qxe3 {[%clk
0:00:15.3]} 37. Rb1 {[%clk 0:00:19]} 37... Qxf4 {[%clk 0:00:13.9]} 38. Rb8+
{[%clk 0:00:18.7]} 38... Qxb8 {[%clk 0:00:13.8]} 39. f4 {[%clk 0:00:17.7]} 39...
Qxf4 {[%clk 0:00:13.2]} 40. c3 {[%clk 0:00:18.2]} 40... Rxc3 {[%clk 0:00:12.1]}
41. Ke2 {[%clk 0:00:19.1]} 41... Qe3+ {[%clk 0:00:11]} 42. Kf1 {[%clk
0:00:19.9]} 42... Rc1+ {[%clk 0:00:10.7]} 43. Kg2 {[%clk 0:00:20.8]} 43... Rg1+
{[%clk 0:00:10.9]} 44. Kh2 {[%clk 0:00:21.7]} 44... Qg3# {[%clk 0:00:11.1]} 0-1

[Event "*** SCC Grand Prix: Titled Tuesday Blitz"]
[Site "Chess.com"]
[Date "2020.08.25"]
[Round "3"]
[White "chesslh19"]
[Black "lider34"]
[Result "0-1"]
[WhiteElo "2216"]
[BlackElo "2403"]
[TimeControl "180+1"]
[EndTime "10:30:18 PDT"]
[Termination "lider34 won by resignation"]

1. e4 {[%clk 0:02:57.6]} 1... c6 {[%clk 0:02:59.5]} 2. d4 {[%clk 0:02:57.2]}
2... d5 {[%clk 0:03:00.4]} 3. Nd2 {[%clk 0:02:57.4]} 3... dxe4 {[%clk
0:02:59.5]} 4. Nxe4 {[%clk 0:02:58.3]} 4... Nf6 {[%clk 0:02:59.7]} 5. Nxf6+
{[%clk 0:02:58.5]} 5... exf6 {[%clk 0:03:00]} 6. Bc4 {[%clk 0:02:59.2]} 6... Bd6
{[%clk 0:02:59.4]} 7. Qe2+ {[%clk 0:02:59.3]} 7... Kf8 {[%clk 0:02:58.3]} 8. Be3
{[%clk 0:02:52.2]} 8... h5 {[%clk 0:02:57.1]} 9. O-O-O {[%clk 0:02:48.1]} 9...
g6 {[%clk 0:02:54]} 10. Nf3 {[%clk 0:02:36.4]} 10... Kg7 {[%clk 0:02:53.4]} 11.
d5 {[%clk 0:02:36.4]} 11... c5 {[%clk 0:02:45.8]} 12. Kb1 {[%clk 0:02:04.2]}
12... a6 {[%clk 0:02:43.9]} 13. Bd3 {[%clk 0:01:56.3]} 13... b5 {[%clk
0:02:41.6]} 14. c4 {[%clk 0:01:55.8]} 14... bxc4 {[%clk 0:02:36.4]} 15. Bxc4
{[%clk 0:01:55.1]} 15... Nd7 {[%clk 0:02:34.9]} 16. Bd2 {[%clk 0:01:48.7]} 16...
Ne5 {[%clk 0:02:30.3]} 17. Nxe5 {[%clk 0:01:47.8]} 17... Bxe5 {[%clk 0:02:28.5]}
18. Bc3 {[%clk 0:01:28.7]} 18... Bxc3 {[%clk 0:02:23.5]} 19. bxc3 {[%clk
0:01:29.6]} 19... Rb8+ {[%clk 0:02:22.9]} 20. Ka1 {[%clk 0:01:23.6]} 20... Qa5
{[%clk 0:02:21.7]} 21. Qc2 {[%clk 0:01:22.3]} 21... Bf5 {[%clk 0:02:19.8]} 22.
Bd3 {[%clk 0:01:22.4]} 22... Bxd3 {[%clk 0:02:12]} 23. Qxd3 {[%clk 0:01:09.2]}
23... c4 {[%clk 0:01:57.1]} 24. Qc2 {[%clk 0:01:04.6]} 24... Rb3 {[%clk
0:01:43.2]} 25. Rc1 {[%clk 0:00:47]} 25... Rhb8 {[%clk 0:01:37.1]} 26. d6 {[%clk
0:00:41.2]} 26... Qa3 {[%clk 0:01:30.1]} 27. Rb1 {[%clk 0:00:25]} 27... Rxc3
{[%clk 0:01:28.5]} 28. Qd2 {[%clk 0:00:18]} 28... Rd3 {[%clk 0:01:23.3]} 29. Qc2
{[%clk 0:00:15.4]} 29... Rxb1+ {[%clk 0:01:10.7]} 30. Rxb1 {[%clk 0:00:13.4]}
30... Qxd6 {[%clk 0:01:11.6]} 31. Qb2 {[%clk 0:00:07.8]} 31... Rd2 {[%clk
0:01:07.7]} 32. Qc3 {[%clk 0:00:07.4]} 32... Rxf2 {[%clk 0:01:04.9]} 33. Rc1
{[%clk 0:00:06.3]} 33... Rxg2 {[%clk 0:00:59.1]} 34. h3 {[%clk 0:00:06.4]} 34...
Qe5 {[%clk 0:00:37.6]} 35. Qxe5 {[%clk 0:00:04.9]} 35... fxe5 {[%clk 0:00:38]}
36. Rxc4 {[%clk 0:00:05.8]} 36... f5 {[%clk 0:00:36.8]} 37. Rc7+ {[%clk
0:00:04.6]} 37... Kh6 {[%clk 0:00:33.5]} 38. Ra7 {[%clk 0:00:04.6]} 38... e4
{[%clk 0:00:32.9]} 39. Rxa6 {[%clk 0:00:05]} 39... e3 {[%clk 0:00:31.9]} 40. Re6
{[%clk 0:00:03.7]} 40... e2 {[%clk 0:00:31.2]} 41. a4 {[%clk 0:00:04.2]} 41...
Rg1+ {[%clk 0:00:30.9]} 42. Kb2 {[%clk 0:00:04.8]} 42... e1=Q {[%clk 0:00:31.8]}
43. Rxe1 {[%clk 0:00:05.4]} 0-1

[Event "*** SCC Grand Prix: Titled Tuesday Blitz"]
[Site "Chess.com"]
[Date "2020.08.25"]
[Round "3"]
[White "SahajGrover"]
[Black "allvim"]
[Result "0-1"]
[WhiteElo "2651"]
[BlackElo "2420"]
[TimeControl "180+1"]
[EndTime "10:30:19 PDT"]
[Termination "allvim won by resignation"]

1. e4 {[%clk 0:03:00.9]} 1... c5 {[%clk 0:02:57.7]} 2. Nf3 {[%clk 0:03:00.2]}
2... d6 {[%clk 0:02:58.1]} 3. Bb5+ {[%clk 0:03:00]} 3... Bd7 {[%clk 0:02:58.1]}
4. Bxd7+ {[%clk 0:02:58.6]} 4... Qxd7 {[%clk 0:02:59]} 5. c4 {[%clk 0:02:58.7]}
5... Nc6 {[%clk 0:02:55.7]} 6. d4 {[%clk 0:02:58.2]} 6... cxd4 {[%clk
0:02:56.6]} 7. Nxd4 {[%clk 0:02:59.1]} 7... Nf6 {[%clk 0:02:56.7]} 8. Nc3 {[%clk
0:02:59.4]} 8... e6 {[%clk 0:02:55.3]} 9. b3 {[%clk 0:02:53.2]} 9... Be7 {[%clk
0:02:55.1]} 10. Bb2 {[%clk 0:02:53.1]} 10... O-O {[%clk 0:02:55.2]} 11. O-O
{[%clk 0:02:52.7]} 11... a6 {[%clk 0:02:55.7]} 12. Re1 {[%clk 0:02:51.2]} 12...
Rfd8 {[%clk 0:02:54.7]} 13. Qd2 {[%clk 0:02:37]} 13... Rac8 {[%clk 0:02:54.1]}
14. Rad1 {[%clk 0:02:36.3]} 14... Qc7 {[%clk 0:02:52]} 15. f4 {[%clk 0:02:25.8]}
15... Qb6 {[%clk 0:02:42.6]} 16. Na4 {[%clk 0:02:20.6]} 16... Qa7 {[%clk
0:02:39.1]} 17. Kh1 {[%clk 0:02:20.6]} 17... Nd7 {[%clk 0:01:50.1]} 18. Qe3
{[%clk 0:02:09]} 18... Qb8 {[%clk 0:01:39.6]} 19. f5 {[%clk 0:02:02.5]} 19...
Nxd4 {[%clk 0:01:33.7]} 20. Qxd4 {[%clk 0:02:02.8]} 20... Ne5 {[%clk 0:00:50.8]}
21. fxe6 {[%clk 0:01:58]} 21... fxe6 {[%clk 0:00:51.7]} 22. c5 {[%clk
0:01:58.2]} 22... Bf6 {[%clk 0:00:47.6]} 23. Qe3 {[%clk 0:01:29.3]} 23... dxc5
{[%clk 0:00:45.6]} 24. Nxc5 {[%clk 0:01:29.2]} 24... Ng4 {[%clk 0:00:42.2]} 25.
Rxd8+ {[%clk 0:00:57]} 25... Rxd8 {[%clk 0:00:37.1]} 26. Qg1 {[%clk 0:00:56.5]}
26... Bxb2 {[%clk 0:00:29.2]} 27. Nxe6 {[%clk 0:00:56.6]} 27... Re8 {[%clk
0:00:21.1]} 28. Re2 {[%clk 0:00:38.6]} 28... Rxe6 {[%clk 0:00:18.3]} 29. Rxb2
{[%clk 0:00:38.9]} 29... Rh6 {[%clk 0:00:16.7]} 30. g3 {[%clk 0:00:38.2]} 30...
Qe5 {[%clk 0:00:15.2]} 31. Qd1 {[%clk 0:00:28.8]} 31... Qxe4+ {[%clk 0:00:11.3]}
32. Kg1 {[%clk 0:00:26.9]} 32... Qe3+ {[%clk 0:00:09.5]} 33. Kh1 {[%clk
0:00:26.1]} 33... Qe4+ {[%clk 0:00:09.5]} 34. Kg1 {[%clk 0:00:26]} 34... Rf6
{[%clk 0:00:07.6]} 35. Re2 {[%clk 0:00:23.7]} 35... Qc6 {[%clk 0:00:05.8]} 36.
Rd2 {[%clk 0:00:20.6]} 36... Qc5+ {[%clk 0:00:05.9]} 37. Kg2 {[%clk 0:00:20.5]}
37... Ne3+ {[%clk 0:00:06.1]} 0-1

[Event "*** SCC Grand Prix: Titled Tuesday Blitz"]
[Site "Chess.com"]
[Date "2020.08.25"]
[Round "3"]
[White "alexgo05"]
[Black "mr65"]
[Result "1-0"]
[WhiteElo "2360"]
[BlackElo "2158"]
[TimeControl "180+1"]
[EndTime "10:30:19 PDT"]
[Termination "alexgo05 won by resignation"]

1. e4 {[%clk 0:03:00.9]} 1... e5 {[%clk 0:02:58.8]} 2. Nf3 {[%clk 0:03:00.8]}
2... Nc6 {[%clk 0:02:58.7]} 3. Bb5 {[%clk 0:03:01.2]} 3... a6 {[%clk 0:02:58.5]}
4. Ba4 {[%clk 0:03:01.5]} 4... Nf6 {[%clk 0:02:58.5]} 5. O-O {[%clk 0:03:01.8]}
5... Be7 {[%clk 0:02:58.6]} 6. Re1 {[%clk 0:03:02.3]} 6... b5 {[%clk 0:02:58.4]}
7. Bb3 {[%clk 0:03:02.8]} 7... O-O {[%clk 0:02:58.3]} 8. a4 {[%clk 0:03:02.6]}
8... b4 {[%clk 0:02:56.9]} 9. a5 {[%clk 0:03:02.9]} 9... d6 {[%clk 0:02:53.8]}
10. d3 {[%clk 0:03:01]} 10... Rb8 {[%clk 0:02:52.8]} 11. Nbd2 {[%clk 0:02:55.7]}
11... Bg4 {[%clk 0:02:50.1]} 12. h3 {[%clk 0:02:44.6]} 12... Bh5 {[%clk
0:02:48.8]} 13. c3 {[%clk 0:02:38.8]} 13... Rb5 {[%clk 0:02:40.9]} 14. Nc4
{[%clk 0:02:30.3]} 14... bxc3 {[%clk 0:02:37.3]} 15. Ba4 {[%clk 0:02:03.2]}
15... cxb2 {[%clk 0:02:32.9]} 16. Bxb2 {[%clk 0:02:02.2]} 16... Rxb2 {[%clk
0:02:21.2]} 17. Nxb2 {[%clk 0:01:55.7]} 17... Nd4 {[%clk 0:02:20.3]} 18. g4
{[%clk 0:01:47.1]} 18... Nxf3+ {[%clk 0:02:06.6]} 19. Qxf3 {[%clk 0:01:45.9]}
19... Bg6 {[%clk 0:02:05.7]} 20. Nc4 {[%clk 0:01:37.8]} 20... h5 {[%clk
0:02:01.3]} 21. Ne3 {[%clk 0:01:30.4]} 21... hxg4 {[%clk 0:01:55.7]} 22. hxg4
{[%clk 0:01:29.4]} 22... d5 {[%clk 0:01:40.5]} 23. Nxd5 {[%clk 0:01:20.8]} 23...
Nxd5 {[%clk 0:01:37.1]} 24. exd5 {[%clk 0:01:21.7]} 24... Bd6 {[%clk 0:01:26.8]}
25. Re3 {[%clk 0:00:28.4]} 25... f5 {[%clk 0:01:05.7]} 26. gxf5 {[%clk
0:00:28.5]} 26... Rxf5 {[%clk 0:00:59.4]} 27. Qg2 {[%clk 0:00:28.8]} 27... Rg5
{[%clk 0:00:39.9]} 28. Rg3 {[%clk 0:00:28.7]} 28... Rxg3 {[%clk 0:00:39.5]} 29.
Qxg3 {[%clk 0:00:28.6]} 29... Qf6 {[%clk 0:00:37.9]} 30. Rb1 {[%clk 0:00:26.6]}
30... e4 {[%clk 0:00:36.2]} 31. Rb8+ {[%clk 0:00:26.6]} 31... Kf7 {[%clk
0:00:35.5]} 32. Be8+ {[%clk 0:00:26.1]} 32... Ke7 {[%clk 0:00:30.4]} 33. Qxg6
{[%clk 0:00:26.4]} 33... Bh2+ {[%clk 0:00:28.4]} 34. Kf1 {[%clk 0:00:22.4]}
34... Qa1+ {[%clk 0:00:26.7]} 35. Kg2 {[%clk 0:00:16.9]} 35... Qg1+ {[%clk
0:00:25.5]} 36. Kh3 {[%clk 0:00:17.3]} 36... Qf1+ {[%clk 0:00:19.4]} 37. Qg2
{[%clk 0:00:10.6]} 37... Qxd3+ {[%clk 0:00:16.8]} 38. Kxh2 {[%clk 0:00:10.7]}
38... Qxd5 {[%clk 0:00:14.5]} 39. Qxg7+ {[%clk 0:00:10.5]} 39... Kd6 {[%clk
0:00:13.5]} 40. Rd8+ {[%clk 0:00:10.9]} 40... Kc5 {[%clk 0:00:13.1]} 41. Rxd5+
{[%clk 0:00:11.8]} 1-0

[Event "*** SCC Grand Prix: Titled Tuesday Blitz"]
[Site "Chess.com"]
[Date "2020.08.25"]
[Round "3"]
[White "mapleaff"]
[Black "AungTZ"]
[Result "1-0"]
[WhiteElo "2344"]
[BlackElo "2138"]
[TimeControl "180+1"]
[EndTime "10:30:19 PDT"]
[Termination "mapleaff won on time"]

1. d4 {[%clk 0:03:00.9]} 1... Nf6 {[%clk 0:02:59.5]} 2. c4 {[%clk 0:03:01]} 2...
e6 {[%clk 0:03:00.1]} 3. g3 {[%clk 0:02:58.7]} 3... d5 {[%clk 0:02:54.7]} 4. Bg2
{[%clk 0:02:58]} 4... c5 {[%clk 0:02:55.3]} 5. cxd5 {[%clk 0:02:57.2]} 5... Nxd5
{[%clk 0:02:54.5]} 6. Nf3 {[%clk 0:02:57.2]} 6... Be7 {[%clk 0:02:53.2]} 7. O-O
{[%clk 0:02:56.5]} 7... O-O {[%clk 0:02:52.8]} 8. Nc3 {[%clk 0:02:54.8]} 8...
Nxc3 {[%clk 0:02:47.1]} 9. bxc3 {[%clk 0:02:55.7]} 9... Nc6 {[%clk 0:02:47.2]}
10. Rb1 {[%clk 0:02:54.7]} 10... Rb8 {[%clk 0:02:45.5]} 11. Bf4 {[%clk
0:02:42.1]} 11... Bd6 {[%clk 0:02:43.1]} 12. dxc5 {[%clk 0:02:36]} 12... Bxf4
{[%clk 0:02:41.6]} 13. Qxd8 {[%clk 0:02:33.6]} 13... Rxd8 {[%clk 0:02:40.9]} 14.
gxf4 {[%clk 0:02:34.1]} 14... Bd7 {[%clk 0:02:17.4]} 15. Rfd1 {[%clk 0:02:31.4]}
15... Be8 {[%clk 0:02:13.5]} 16. Nd4 {[%clk 0:02:29.8]} 16... Kf8 {[%clk
0:01:41.5]} 17. e3 {[%clk 0:02:11.3]} 17... Ke7 {[%clk 0:01:09.7]} 18. Be4
{[%clk 0:01:44]} 18... g6 {[%clk 0:01:07.6]} 19. Kg2 {[%clk 0:01:31.5]} 19...
Rdc8 {[%clk 0:00:56.9]} 20. Rd2 {[%clk 0:00:45.4]} 20... Na5 {[%clk 0:00:54.8]}
21. Rdb2 {[%clk 0:00:44.6]} 21... Rxc5 {[%clk 0:00:49.5]} 22. Bxb7 {[%clk
0:00:40.7]} 22... Rxc3 {[%clk 0:00:44.9]} 23. Be4 {[%clk 0:00:35.5]} 23... Rxb2
{[%clk 0:00:42]} 24. Rxb2 {[%clk 0:00:36.4]} 24... Ra3 {[%clk 0:00:40.9]} 25.
Nc2 {[%clk 0:00:20.1]} 25... Rc3 {[%clk 0:00:37.9]} 26. Nd4 {[%clk 0:00:19.2]}
26... f6 {[%clk 0:00:25.9]} 27. h4 {[%clk 0:00:18.2]} 27... e5 {[%clk
0:00:19.7]} 28. fxe5 {[%clk 0:00:19.1]} 28... fxe5 {[%clk 0:00:19.4]} 29. Nf3
{[%clk 0:00:20]} 29... Kd6 {[%clk 0:00:16]} 30. Rd2+ {[%clk 0:00:19.1]} 30...
Ke6 {[%clk 0:00:15.8]} 31. Bd5+ {[%clk 0:00:19.4]} 31... Kf6 {[%clk 0:00:15.5]}
32. Ng5 {[%clk 0:00:19.3]} 32... Ra3 {[%clk 0:00:10.7]} 33. Nxh7+ {[%clk
0:00:19.2]} 33... Kg7 {[%clk 0:00:10.9]} 34. Ng5 {[%clk 0:00:19.7]} 34... Kh6
{[%clk 0:00:11.4]} 35. Rc2 {[%clk 0:00:16.8]} 35... Bd7 {[%clk 0:00:10.3]} 36.
Rc7 {[%clk 0:00:16.7]} 36... Kh5 {[%clk 0:00:06.3]} 37. Kg3 {[%clk 0:00:15.3]}
37... Nc6 {[%clk 0:00:02.7]} 38. Rxd7 {[%clk 0:00:14.7]} 1-0

[Event "*** SCC Grand Prix: Titled Tuesday Blitz"]
[Site "Chess.com"]
[Date "2020.08.25"]
[Round "3"]
[White "Zq1"]
[Black "Sychev_Klementy"]
[Result "1/2-1/2"]
[WhiteElo "2537"]
[BlackElo "2770"]
[TimeControl "180+1"]
[EndTime "10:30:20 PDT"]
[Termination "Game drawn by repetition"]

1. Nf3 {[%clk 0:03:00.9]} 1... Nf6 {[%clk 0:02:59.1]} 2. c4 {[%clk 0:02:59.5]}
2... g6 {[%clk 0:02:53.7]} 3. Nc3 {[%clk 0:02:59.3]} 3... Bg7 {[%clk 0:02:52.1]}
4. e4 {[%clk 0:02:58.7]} 4... d6 {[%clk 0:02:52.3]} 5. d4 {[%clk 0:02:58.2]}
5... Bg4 {[%clk 0:02:50.3]} 6. Be2 {[%clk 0:02:57.5]} 6... Nfd7 {[%clk
0:02:48.4]} 7. Be3 {[%clk 0:02:57.1]} 7... O-O {[%clk 0:02:48.1]} 8. Rc1 {[%clk
0:02:56.1]} 8... a6 {[%clk 0:02:43.5]} 9. d5 {[%clk 0:02:53.3]} 9... Bxf3 {[%clk
0:02:37.6]} 10. Bxf3 {[%clk 0:02:52.6]} 10... b5 {[%clk 0:02:37.4]} 11. Be2
{[%clk 0:02:16.8]} 11... b4 {[%clk 0:01:49.6]} 12. Na4 {[%clk 0:02:15.7]} 12...
c5 {[%clk 0:01:49.5]} 13. dxc6 {[%clk 0:02:11.3]} 13... Nxc6 {[%clk 0:01:48.7]}
14. O-O {[%clk 0:02:05.7]} 14... Nf6 {[%clk 0:01:30.6]} 15. f3 {[%clk
0:02:03.2]} 15... Rb8 {[%clk 0:01:23.4]} 16. b3 {[%clk 0:01:56.1]} 16... a5
{[%clk 0:01:21.6]} 17. Qd2 {[%clk 0:01:51.8]} 17... Qc7 {[%clk 0:01:11.1]} 18.
Rfd1 {[%clk 0:01:47.2]} 18... Rfd8 {[%clk 0:01:09.8]} 19. Bf1 {[%clk 0:01:46.8]}
19... e6 {[%clk 0:01:03.5]} 20. Qf2 {[%clk 0:01:46.1]} 20... Qe7 {[%clk
0:01:02.7]} 21. Nb6 {[%clk 0:01:25.3]} 21... h5 {[%clk 0:00:48.7]} 22. h3 {[%clk
0:01:23.5]} 22... Ne8 {[%clk 0:00:43.5]} 23. c5 {[%clk 0:01:08.5]} 23... Qb7
{[%clk 0:00:25.8]} 24. cxd6 {[%clk 0:00:59.2]} 24... Rxd6 {[%clk 0:00:20.7]} 25.
Rxd6 {[%clk 0:00:53.7]} 25... Nxd6 {[%clk 0:00:21.6]} 26. Na4 {[%clk 0:00:42.8]}
26... Nb5 {[%clk 0:00:17.6]} 27. Bxb5 {[%clk 0:00:35.4]} 27... Qxb5 {[%clk
0:00:18.5]} 28. Qf1 {[%clk 0:00:33.6]} 28... Bd4 {[%clk 0:00:15]} 29. Bxd4
{[%clk 0:00:29.2]} 29... Nxd4 {[%clk 0:00:14.4]} 30. Qxb5 {[%clk 0:00:28.7]}
30... Rxb5 {[%clk 0:00:15.3]} 31. Kf2 {[%clk 0:00:26.5]} 31... Kf8 {[%clk
0:00:13.5]} 32. Ke3 {[%clk 0:00:24.8]} 32... e5 {[%clk 0:00:13.6]} 33. Rc5
{[%clk 0:00:23]} 33... Ke7 {[%clk 0:00:11.1]} 34. Rxb5 {[%clk 0:00:21.7]} 34...
Nxb5 {[%clk 0:00:12]} 35. Kd3 {[%clk 0:00:21]} 35... Nd6 {[%clk 0:00:12]} 36.
Nb6 {[%clk 0:00:18.1]} 36... Ke6 {[%clk 0:00:11]} 37. h4 {[%clk 0:00:16.6]}
37... f6 {[%clk 0:00:10.1]} 38. Nc4 {[%clk 0:00:15.7]} 38... Nb7 {[%clk
0:00:09.8]} 39. Nb6 {[%clk 0:00:15]} 39... Nd6 {[%clk 0:00:09.5]} 40. Nc4 {[%clk
0:00:14.9]} 40... Nb7 {[%clk 0:00:09.4]} 41. Nb6 {[%clk 0:00:14.4]} 41... Nd6
{[%clk 0:00:08.3]} 1/2-1/2

[Event "*** SCC Grand Prix: Titled Tuesday Blitz"]
[Site "Chess.com"]
[Date "2020.08.25"]
[Round "3"]
[White "A-Fier"]
[Black "Kopytkin"]
[Result "1-0"]
[WhiteElo "2755"]
[BlackElo "2427"]
[TimeControl "180+1"]
[EndTime "10:30:20 PDT"]
[Termination "A-Fier won on time"]

1. d4 {[%clk 0:03:00.9]} 1... d5 {[%clk 0:02:59.3]} 2. c4 {[%clk 0:03:00.3]}
2... c6 {[%clk 0:02:59.5]} 3. Nc3 {[%clk 0:03:00]} 3... Nf6 {[%clk 0:02:59.9]}
4. e3 {[%clk 0:03:00.4]} 4... a6 {[%clk 0:02:59.4]} 5. Qc2 {[%clk 0:02:59.4]}
5... g6 {[%clk 0:02:58.4]} 6. Bd3 {[%clk 0:02:59.5]} 6... Bg7 {[%clk 0:02:58.8]}
7. Nf3 {[%clk 0:02:59.8]} 7... O-O {[%clk 0:02:59]} 8. O-O {[%clk 0:02:59.9]}
8... b6 {[%clk 0:02:59.5]} 9. cxd5 {[%clk 0:02:59.1]} 9... Nxd5 {[%clk
0:02:57.3]} 10. Nxd5 {[%clk 0:02:55.8]} 10... cxd5 {[%clk 0:02:57.3]} 11. Bd2
{[%clk 0:02:56.2]} 11... Nd7 {[%clk 0:02:46.6]} 12. Rfc1 {[%clk 0:02:55.6]}
12... Bb7 {[%clk 0:02:46.8]} 13. Qc7 {[%clk 0:02:44.4]} 13... Rb8 {[%clk
0:02:46.9]} 14. Bb4 {[%clk 0:02:41.2]} 14... Bf6 {[%clk 0:02:37.1]} 15. Qxd8
{[%clk 0:02:38.2]} 15... Rfxd8 {[%clk 0:02:36.7]} 16. Rc7 {[%clk 0:02:39.1]}
16... a5 {[%clk 0:01:59.1]} 17. Ba3 {[%clk 0:02:36.6]} 17... e5 {[%clk
0:01:18.9]} 18. Bb5 {[%clk 0:02:29.1]} 18... e4 {[%clk 0:01:13.5]} 19. Bxd7
{[%clk 0:02:28]} 19... exf3 {[%clk 0:01:13.2]} 20. gxf3 {[%clk 0:02:28.9]} 20...
Ba6 {[%clk 0:01:07.6]} 21. Rac1 {[%clk 0:02:28.2]} 21... Rb7 {[%clk 0:00:57.3]}
22. Rxb7 {[%clk 0:02:27.2]} 22... Bxb7 {[%clk 0:00:56.5]} 23. Rc7 {[%clk
0:02:28.1]} 23... Ba6 {[%clk 0:00:56.5]} 24. Bh3 {[%clk 0:02:11.8]} 24... a4
{[%clk 0:00:34.8]} 25. Rc6 {[%clk 0:02:04.4]} 25... Kg7 {[%clk 0:00:34.6]} 26.
Rxb6 {[%clk 0:02:04]} 26... Bc4 {[%clk 0:00:34.7]} 27. b3 {[%clk 0:02:02.9]}
27... axb3 {[%clk 0:00:34.6]} 28. axb3 {[%clk 0:02:03.8]} 28... Bd3 {[%clk
0:00:35.1]} 29. Bf1 {[%clk 0:01:50.4]} 29... Bxf1 {[%clk 0:00:35.1]} 30. Kxf1
{[%clk 0:01:50.4]} 30... Ra8 {[%clk 0:00:36]} 31. Bc5 {[%clk 0:01:50.8]} 31...
Ra1+ {[%clk 0:00:33.3]} 32. Kg2 {[%clk 0:01:50.6]} 32... Rb1 {[%clk 0:00:25.2]}
33. Rb8 {[%clk 0:01:47.7]} 33... h5 {[%clk 0:00:21.1]} 34. b4 {[%clk 0:01:47]}
34... g5 {[%clk 0:00:18.1]} 35. b5 {[%clk 0:01:46.9]} 35... g4 {[%clk
0:00:18.4]} 36. fxg4 {[%clk 0:01:47.1]} 36... hxg4 {[%clk 0:00:18.4]} 37. b6
{[%clk 0:01:47.6]} 37... Bh4 {[%clk 0:00:18.6]} 38. Bd6 {[%clk 0:01:47.6]} 38...
Rb2 {[%clk 0:00:06.1]} 39. Bg3 {[%clk 0:01:48]} 39... Be7 {[%clk 0:00:06.7]} 40.
Rb7 {[%clk 0:01:47.6]} 40... Kf8 {[%clk 0:00:05.6]} 41. Rd7 {[%clk 0:01:47.8]}
41... Ke8 {[%clk 0:00:05.6]} 42. Rxd5 {[%clk 0:01:47.6]} 42... Rxb6 {[%clk
0:00:05.5]} 43. Re5 {[%clk 0:01:46.5]} 43... Kf8 {[%clk 0:00:03.8]} 44. Rf5
{[%clk 0:01:46]} 44... Rg6 {[%clk 0:00:03.6]} 45. e4 {[%clk 0:01:44.7]} 45...
Ke8 {[%clk 0:00:03.8]} 46. d5 {[%clk 0:01:44.8]} 46... Bd8 {[%clk 0:00:04.1]}
47. h3 {[%clk 0:01:42.4]} 47... f6 {[%clk 0:00:04.5]} 48. h4 {[%clk 0:01:41.9]}
48... Kf7 {[%clk 0:00:02.7]} 49. h5 {[%clk 0:01:42.2]} 49... Rh6 {[%clk
0:00:02.3]} 50. Bf4 {[%clk 0:01:42.3]} 50... Rh8 {[%clk 0:00:01.8]} 51. Kg3
{[%clk 0:01:42.5]} 51... Ke7 {[%clk 0:00:01.3]} 52. Kxg4 {[%clk 0:01:42.2]}
52... Bb6 {[%clk 0:00:01.4]} 53. Bg3 {[%clk 0:01:40.3]} 53... Bd4 {[%clk
0:00:01.6]} 54. f4 {[%clk 0:01:39.1]} 54... Rg8+ {[%clk 0:00:02.1]} 55. Kf3
{[%clk 0:01:39.4]} 55... Bc5 {[%clk 0:00:01.7]} 56. e5 {[%clk 0:01:39.6]} 56...
Bd4 {[%clk 0:00:01.7]} 57. Rxf6 {[%clk 0:01:39.6]} 57... Rh8 {[%clk 0:00:01.4]}
58. h6 {[%clk 0:01:39.4]} 58... Ke8 {[%clk 0:00:01.6]} 59. d6 {[%clk 0:01:39.6]}
59... Bc5 {[%clk 0:00:01.9]} 60. Bh4 {[%clk 0:01:39.7]} 60... Bb4 {[%clk
0:00:01.7]} 61. Bg5 {[%clk 0:01:40]} 61... Ba3 {[%clk 0:00:01.8]} 62. Ke4 {[%clk
0:01:40.4]} 62... Bb4 {[%clk 0:00:02.1]} 63. Kf5 {[%clk 0:01:40.9]} 63... Bc5
{[%clk 0:00:02.4]} 64. Ke6 {[%clk 0:01:41.3]} 64... Bb4 {[%clk 0:00:02.7]} 65.
d7+ {[%clk 0:01:38.4]} 65... Kd8 {[%clk 0:00:03]} 66. Rf8+ {[%clk 0:01:38.5]}
66... Kc7 {[%clk 0:00:03.4]} 67. d8=Q+ {[%clk 0:01:38.4]} 1-0